bitfinex/quotes_ETHUSD_20241215
["timestamp","ask_amount","ask_price","bid_price","bid_amount"]
[1734305103893,2.94159281,3930.6,3929.0,0.02544182]
[1734305104162,0.8076,3930.4,3928.9,0.160057]
[1734305104293,0.7914,3929.8,3928.9,0.160057]
[1734305104634,0.7914,3929.8,3928.7,0.029418]
[1734305104635,0.7914,3929.2,3928.7,0.029418]
[1734305104837,3.0,3929.3,3928.7,0.029418]
[1734305104838,0.7914,3929.0,3928.7,0.029418]
[1734305105447,0.7914,3929.0,3926.6,4.09518004]
[1734305105448,0.7914,3928.6,3926.7,1.525]
[1734305105664,0.8085,3928.4,3926.5,2.54675]
[1734305105940,0.8085,3928.0,3926.2,2.5723998]
[1734305106145,0.8085,3928.0,3926.3,1.16294127]
[1734305106361,0.8085,3928.6,3927.0,0.0294]
[1734305106636,0.8085,3928.6,3927.1,1.55045397]
[1734305106792,0.8085,3928.6,3927.7,1.525]
[1734305106992,0.5051587,3930.4,3927.9,1.5544]
[1734305106993,0.8085,3929.9,3927.9,1.5544]
[1734305107271,0.8085,3929.9,3928.1,1.525]
[1734305107418,0.8085,3929.9,3928.9,2.54523]
[1734305107594,0.8085,3929.9,3929.0,0.02544507]
[1734305107952,0.8085,3930.5,3929.2,2.54501]
[1734305108098,0.8085,3930.5,3929.3,0.02544226]
[1734305108444,2.94159281,3931.3,3929.3,0.02544226]
[1734305108445,0.8085,3931.2,3930.5,2.54416]
[1734305108594,0.8085,3931.2,3929.9,2.54459]
[1734305108794,0.8085,3931.2,3930.6,2.54411]
[1734305109044,0.16005702,3931.4,3931.0,2.54387]
[1734305109743,0.16005702,3931.4,3930.7,0.02543268]
[1734305110053,0.16005702,3931.4,3931.2,2.54372]
[1734305110260,0.16005702,3931.4,3931.3,11.36339381]
[1734305110412,0.16005702,3931.4,3931.3,2.59185]
[1734305110622,0.16005702,3931.4,3931.1,2.5438]
[1734305110833,0.16005702,3931.4,3930.3,0.0294]
[1734305110834,0.16005702,3931.4,3931.2,4.8008418]
[1734305111162,0.16005702,3931.4,3931.2,2.5691418]
[1734305111310,0.16005702,3931.4,3931.3,6.0516]
[1734305111627,0.16005702,3931.4,3931.3,5.682138]
[1734305111836,0.16005702,3931.4,3931.2,2.54371]
[1734305112023,0.01361681,3931.4,3931.3,3.37629011]
[1734305112323,6.81e-06,3931.4,3931.3,3.37629011]
[1734305112521,0.00925321,3931.5,3931.3,3.37629011]
[1734305112717,3.21e-06,3931.5,3931.4,17.506126]
[1734305112960,3.21e-06,3931.5,3931.4,11.803026]
[1734305113256,3.21e-06,3931.5,3930.4,1.03040916]
[1734305113410,3.21e-06,3931.5,3931.3,2.54367]
[1734305113881,3.21e-06,3931.5,3931.4,6.73088732]
[1734305114029,4.01e-06,3932.0,3931.7,2.54342]
[1734305114211,5.68e-06,3932.4,3932.3,2.54304]
[1734305114408,5.68e-06,3932.4,3932.3,2.56846223]
[1734305115056,0.03352475,3932.5,3932.3,2.56846223]
[1734305115057,4.3e-07,3932.5,3932.3,2.56846223]
[1734305115259,4.3e-07,3932.5,3932.3,34.15921523]
[1734305115414,2.46e-06,3932.9,3932.8,2.54271]
[1734305116070,2.46e-06,3932.9,3932.8,2.81659735]
[1734305116216,2.46e-06,3932.9,3932.8,11.203766]
[1734305116416,2.46e-06,3932.9,3932.8,11.224995]
[1734305116655,2.46e-06,3932.9,3932.8,10.38373084]
[1734305117359,2.46e-06,3932.9,3932.8,9.72829484]
[1734305117563,2.46e-06,3932.9,3932.8,6.28547884]
[1734305117763,2.46e-06,3932.9,3932.8,14.354399]
[1734305117948,2.46e-06,3932.9,3932.8,28.23495884]
[1734305118169,2.46e-06,3932.9,3932.8,28.21276884]
[1734305118525,2.46e-06,3932.9,3932.8,27.20496884]
[1734305119167,2.46e-06,3932.9,3932.8,19.34169284]
[1734305119469,0.44279137,3934.4,3933.9,2.542]
[1734305120072,0.44279137,3934.4,3933.9,2.89355082]
[1734305120294,0.44279137,3934.4,3934.1,2.54187]
[1734305120295,1.09978266,3934.2,3934.1,2.54187]
[1734305120623,1.09978266,3934.2,3934.1,13.316955]
[1734305120852,1.09978266,3934.2,3934.1,5.573066]
[1734305121126,1.09978266,3934.2,3934.0,2.54187]
[1734305121429,1.09978266,3934.2,3934.1,5.814313]
[1734305121860,1.13033139,3934.2,3933.4,2.54232]
[1734305122085,1.13033139,3934.2,3934.0,2.54188]
[1734305122086,1.09978266,3934.2,3934.0,2.54188]
[1734305122297,0.02582622,3934.1,3933.4,0.34363537]
[1734305122599,1.09978266,3934.2,3934.0,2.54192]
[1734305122894,1.09978266,3934.2,3934.1,5.571421]
[1734305123890,1.09978266,3934.2,3934.0,2.54192]
[1734305124090,1.09978266,3934.2,3933.6,2.54216]
[1734305124249,1.09978266,3934.2,3933.3,2.54239]
[1734305124453,1.09978266,3934.2,3933.2,0.34363537]
[1734305124689,1.09978266,3934.2,3933.3,2.54239]
[1734305124997,1.09978266,3934.2,3934.0,2.54193]
[1734305125294,1.09978266,3934.2,3933.3,0.34363537]
[1734305125590,1.09978266,3934.2,3932.8,0.34363537]
[1734305125794,1.09978266,3934.2,3933.1,0.34363537]
[1734305126020,1.09978266,3934.2,3933.5,2.5422]
[1734305126302,1.09978266,3934.2,3933.6,2.54219]
[1734305126650,1.09978266,3934.2,3933.7,2.54212]
[1734305127064,1.09978266,3934.2,3933.7,2.54211]
[1734305127880,0.0279004,3934.1,3933.3,0.02541679]
[1734305128192,0.0279004,3934.1,3933.3,0.36905216]
[1734305128712,0.0279004,3934.1,3933.9,2.54197]
[1734305128914,0.0279004,3934.1,3934.0,21.661858]
[1734305129067,1.09978266,3934.2,3934.0,2.54192]
[1734305129574,1.09978266,3934.2,3934.1,9.355109]
[1734305129861,1.09978266,3934.2,3933.5,2.54224]
[1734305130366,0.8115,3934.0,3933.1,2.5425]
[1734305130525,0.8115,3934.0,3932.3,0.14859]
[1734305130869,0.8115,3934.0,3932.2,2.88667537]
[1734305130870,0.0278512,3933.9,3932.2,0.0254194]
[1734305131173,0.0278512,3933.9,3932.5,2.54289]
[1734305131465,0.0278512,3933.9,3932.0,2.54322]
[1734305131466,0.0278512,3933.9,3932.9,2.54265]
[1734305131623,0.0278512,3933.9,3932.6,0.02542061]
[1734305131967,0.0278512,3933.9,3932.8,2.54266]
[1734305132273,0.8115,3934.0,3933.0,2.54257]
[1734305132619,0.8115,3934.0,3933.1,2.54251]
[1734305132858,0.8115,3934.0,3933.6,2.54219]
[1734305133037,0.8115,3934.0,3932.8,0.02541764]
[1734305133245,0.8115,3934.0,3932.9,2.54262]
[1734305133448,0.8115,3934.0,3932.8,0.02541764]
[1734305133672,0.8115,3934.0,3933.5,2.54224]
[1734305134170,0.8115,3934.0,3932.6,0.0294]
[1734305134171,0.8115,3934.0,3933.2,2.54244]
[1734305134373,0.8115,3934.0,3932.9,2.5426]
[1734305134687,1.00262827,3934.0,3931.7,2.9404669]
[1734305134975,0.8115,3934.0,3933.0,2.54258]
[1734305135273,0.8115,3934.0,3932.0,2.54323]
[1734305135446,0.8115,3934.0,3933.1,2.54251]
[1734305135770,0.8115,3934.0,3932.7,2.54275]
[1734305135934,0.8115,3934.0,3932.9,2.54264]
[1734305136135,0.8115,3934.0,3932.6,2.54281]
[1734305136341,3.0,3934.1,3932.2,2.54304]
[1734305136342,0.77,3933.8,3932.2,2.54304]
[1734305136638,0.77,3933.8,3932.7,2.54276]
[1734305136862,0.77,3933.8,3932.8,2.54268]
[1734305137178,0.77,3933.8,3933.3,2.54239]
[1734305137684,0.77,3933.8,3933.1,2.54252]
[1734305138282,0.77,3933.8,3932.6,0.02541955]
[1734305138449,0.77,3933.8,3933.3,2.54238]
[1734305138775,0.77,3933.8,3932.8,2.56812982]
[1734305139084,0.77,3933.8,3932.3,0.0294]
[1734305139085,0.77,3933.8,3932.6,1.525]
[1734305139290,1.09978266,3934.2,3934.1,2.54187]
[1734305139435,1.09978266,3934.2,3933.8,2.54201]
[1734305139638,1.09978266,3934.2,3933.5,2.54226]
[1734305139889,1.09978266,3934.2,3934.1,2.54187]
[1734305140474,1.09978266,3934.2,3934.1,8.898353]
[1734305140696,1.09978266,3934.2,3934.1,8.898348]
[1734305140842,0.11614204,3934.7,3934.3,4.06674]
[1734305141234,0.11614204,3934.7,3934.3,18.14262]
[1734305141676,0.11614204,3934.7,3934.3,9.441006]
[1734305141874,1.37e-06,3934.4,3934.3,9.441006]
[1734305142941,1.37e-06,3934.4,3934.3,8.55844]
[1734305143140,1.37e-06,3934.4,3934.3,2.54174]
[1734305143768,1.37e-06,3934.4,3934.3,8.737614]
[1734305143941,1.37e-06,3934.4,3934.3,4.56145]
[1734305144141,1.37e-06,3934.4,3934.3,2.54174]
[1734305144361,1.37e-06,3934.4,3934.3,8.764136]
[1734305144642,1.37e-06,3934.4,3934.3,7.430315]
[1734305145885,1.37e-06,3934.4,3934.3,6.65073]
[1734305146759,2.87e-06,3934.6,3934.5,2.54161]
[1734305147169,2.87e-06,3934.6,3934.5,17.704955]
[1734305148195,2.87e-06,3934.6,3934.5,11.730024]
[1734305148394,2.87e-06,3934.6,3934.1,0.2488]
[1734305148888,2.87e-06,3934.6,3934.5,2.54161]
[1734305152992,0.8301,3934.5,3934.2,2.54179]
[1734305153654,0.8301,3934.5,3934.1,0.2488]
[1734305153655,0.8301,3934.5,3934.3,2.54174]
[1734305154020,0.8301,3934.5,3934.4,2.54168]
[1734305154295,2.87e-06,3934.6,3934.5,2.54161]
[1734305155191,2.87e-06,3934.6,3934.5,6.397362]
[1734305155397,2.87e-06,3934.6,3934.5,6.391362]
[1734305155596,2.87e-06,3934.6,3934.5,7.264927]
[1734305155800,2.87e-06,3934.6,3934.5,2.54161]
[1734305156219,2.87e-06,3934.6,3934.2,0.002542]
[1734305156504,2.87e-06,3934.6,3934.4,2.54166]
[1734305157229,2.87e-06,3934.6,3934.2,0.002542]
[1734305157230,0.7521,3934.5,3934.2,0.002542]
[1734305159260,0.7521,3934.5,3934.2,2.544352]
[1734305159464,0.7521,3934.5,3934.2,0.002542]
[1734305160607,0.7521,3934.5,3934.4,2.54168]
[1734305160967,0.7521,3934.5,3934.2,0.002542]
[1734305161397,2.87e-06,3934.6,3934.5,2.54161]
[1734305161930,2.87e-06,3934.6,3934.5,30.08164358]
[1734305162086,2.87e-06,3934.6,3934.5,20.09745516]
[1734305162409,2.87e-06,3934.6,3934.5,12.86412216]
[1734305162611,2.87e-06,3934.6,3934.5,3.71139816]
[1734305162781,2.87e-06,3934.6,3934.5,11.29144358]
[1734305163104,2.87e-06,3934.6,3934.2,0.002542]
[1734305163105,2.87e-06,3934.6,3934.2,1.03095342]
[1734305163266,2.87e-06,3934.6,3934.5,2.54161]
[1734305163467,2.87e-06,3934.6,3934.2,0.002542]
[1734305164036,2.87e-06,3934.6,3934.5,2.54161]
[1734305165101,2.87e-06,3934.6,3934.3,2.54174]
[1734305165379,2.87e-06,3934.6,3934.4,2.54167]
[1734305165788,2.87e-06,3934.6,3934.2,1.03095342]
[1734305165999,0.7578,3934.5,3934.2,1.03095342]
[1734305166208,0.7578,3934.5,3934.3,1.17352841]
[1734305168084,0.7578,3934.5,3934.3,2.54172]
[1734305168623,0.7578,3934.5,3934.2,0.002542]
[1734305168774,0.7578,3934.5,3934.3,1.17352199]
[1734305168967,0.7578,3934.5,3934.2,0.002542]
[1734305170229,0.7832897,3934.5,3934.2,0.002542]
[1734305170377,0.25,3934.3,3932.9,1.02841142]
[1734305170569,0.25,3934.3,3932.7,1.54261713]
[1734305170570,3.8093,3934.1,3932.7,1.02841142]
[1734305170796,0.8093,3933.9,3932.5,1.02841142]
[1734305170971,0.8093,3933.9,3932.4,1.02841142]
[1734305171311,0.8093,3933.9,3932.6,2.5428]
[1734305171672,0.8093,3933.9,3932.4,1.02841142]
[1734305171878,0.8093,3933.9,3932.6,2.5428]
[1734305172123,0.8093,3933.9,3932.9,2.54259]
[1734305172546,0.8093,3933.9,3932.6,1.02841142]
[1734305172673,0.8093,3933.9,3932.8,1.02841142]
[1734305172875,0.8093,3933.9,3932.8,1.17389842]
[1734305173182,0.8093,3933.9,3932.9,1.17389842]
[1734305173413,0.8093,3933.9,3933.4,2.54231]
[1734305174327,0.8093,3933.9,3933.1,2.54247]
[1734305174556,0.8093,3933.9,3933.4,2.54229]
[1734305174674,0.8093,3933.9,3933.2,2.54245]
[1734305174998,0.8093,3933.9,3932.9,1.02841142]
[1734305175202,0.8093,3933.9,3933.5,2.54222]
[1734305175397,0.8093,3933.9,3933.2,2.54239]
[1734305175596,0.8093,3933.9,3932.9,2.5426]
[1734305175970,0.8093,3933.9,3932.5,0.36395152]
[1734305175971,0.8093,3933.9,3932.7,1.03228488]
[1734305176176,0.8093,3933.9,3932.8,1.17334144]
[1734305176401,0.8093,3933.9,3933.0,2.54257]
[1734305177115,0.8093,3933.9,3932.7,1.03228488]
[1734305177313,0.0254897,3934.5,3934.4,2.54168]
[1734305177314,0.8093,3934.5,3934.4,2.54168]
[1734305177518,0.8093,3934.5,3933.4,3.57458488]
[1734305177519,0.8093,3934.5,3933.6,1.03228488]
[1734305177814,0.8093,3934.5,3934.4,2.54168]
[1734305179113,0.8093,3934.5,3934.0,1.03228488]
[1734305179285,0.8093,3934.5,3933.7,1.03228488]
[1734305179488,0.8093,3934.5,3933.8,1.20959418]
[1734305179702,0.8093,3934.5,3933.8,2.54201]
[1734305179912,0.8093,3934.5,3933.9,2.542]
[1734305180101,0.8093,3934.5,3933.6,1.03228488]
[1734305180309,0.8093,3934.5,3934.0,2.54191]
[1734305180823,0.8093,3934.5,3933.5,1.03228488]
[1734305181032,0.8093,3934.5,3933.6,1.20986061]
[1734305181332,0.8093,3934.5,3934.4,2.54168]
[1734305182969,2.87e-06,3934.6,3934.5,2.54161]
[1734305185435,2.87e-06,3934.6,3934.5,3.75161516]
[1734305186399,2.87e-06,3934.6,3934.5,4.78390004]
[1734305187710,2.87e-06,3934.6,3934.5,4.78373902]
[1734305188071,2.11e-06,3935.1,3935.0,2.54129]
[1734305188273,2.11e-06,3935.1,3935.0,3.75113414]
[1734305188512,2.11e-06,3935.1,3935.0,4.78253057]
[1734305188914,2.11e-06,3935.1,3935.0,4.56836551]
[1734305189121,0.00616275,3936.3,3935.4,2.54103]
[1734305189122,1.39e-06,3935.7,3935.4,2.54103]
[1734305189410,1.39e-06,3935.7,3935.1,2.82203]
[1734305189411,1.39e-06,3935.7,3935.6,2.5409]
[1734305189614,1.39e-06,3935.7,3935.6,3.35813137]
[1734305189787,1.39e-06,3935.7,3935.6,2.5409]
[1734305190379,1.39e-06,3935.7,3935.6,4.58250186]
[1734305190577,0.00616275,3936.3,3935.6,16.51847469]
[1734305190778,0.00616275,3936.3,3936.1,4.0871715]
[1734305191044,0.03388452,3936.4,3936.3,2.54045]
[1734305191045,7.27e-06,3936.4,3936.3,2.54045]
[1734305191204,7.27e-06,3936.4,3936.3,8.33194141]
[1734305191406,7.27e-06,3936.4,3936.3,11.01105612]
[1734305191579,0.7558,3938.3,3936.3,6.04461422]
[1734305191889,0.7558,3938.3,3937.6,2.53961]
[1734305192992,0.51401465,3937.9,3937.6,2.53961]
[1734305193593,0.7558,3938.3,3937.6,2.53961]
[1734305194180,0.52051537,3938.0,3937.6,2.53961]
[1734305194380,2.6e-06,3937.7,3937.6,13.6485699]
[1734305194622,2.6e-06,3937.7,3937.6,5.0924799]
[1734305194831,2.6e-06,3937.7,3937.6,5.92161137]
[1734305195520,2.6e-06,3937.7,3937.6,5.0924799]
[1734305196094,2.6e-06,3937.7,3937.6,5.92048159]
[1734305196293,2.6e-06,3937.7,3937.6,7.16223155]
[1734305196507,2.6e-06,3937.7,3937.6,5.0924799]
[1734305196716,2.6e-06,3937.7,3937.6,5.11786704]
[1734305196918,2.6e-06,3937.7,3937.6,4.72861]
[1734305197243,2.6e-06,3937.7,3937.6,5.51512517]
[1734305197393,2.6e-06,3937.7,3937.6,6.31648265]
[1734305197602,2.6e-06,3937.7,3937.6,5.1962549]
[1734305197802,2.6e-06,3937.7,3937.6,2.9034799]
[1734305198108,2.6e-06,3937.7,3937.6,2.53961]
[1734305198503,2.6e-06,3937.7,3937.4,2.5397]
[1734305198705,2.6e-06,3937.7,3937.5,2.53964]
[1734305199530,2.6e-06,3937.7,3937.6,10.661904]
[1734305199741,2.6e-06,3937.7,3937.6,3.556776]
[1734305200306,2.6e-06,3937.7,3937.5,2.53964]
[1734305200910,2.6e-06,3937.7,3937.6,9.5384589]
[1734305201532,0.1655162,3938.8,3937.6,9.5384589]
[1734305201533,0.1655162,3938.8,3937.7,2.53955]
[1734305201732,0.1655162,3938.8,3938.7,2.5389]
[1734305202159,0.1655162,3938.8,3938.7,2.9027699]
[1734305202320,0.1655162,3938.8,3938.7,2.5389]
[1734305202636,0.1655162,3938.8,3938.7,15.0281049]
[1734305202939,0.1655162,3938.8,3938.7,11.0949359]
[1734305203138,0.00383355,3938.8,3938.7,2.9027699]
[1734305203308,0.00383355,3938.8,3938.7,2.5389]
[1734305203635,0.00383355,3938.8,3938.7,8.6911929]
[1734305203848,0.00383355,3938.8,3938.7,5.9865539]
[1734305204221,0.00383355,3938.8,3938.7,9.2383799]
[1734305204402,0.00383355,3938.8,3938.7,7.6424879]
[1734305204603,0.00383355,3938.8,3938.7,6.0816749]
[1734305205212,3.55e-06,3938.8,3938.7,6.0816749]
[1734305206664,3.55e-06,3938.8,3938.7,7.557289]
[1734305206880,3.55e-06,3938.8,3938.7,7.9211589]
[1734305207757,3.55e-06,3938.8,3938.7,7.5758409]
[1734305207903,3.55e-06,3938.8,3938.7,6.9807599]
[1734305208670,3.55e-06,3938.8,3938.7,2.66523514]
[1734305209239,3.55e-06,3938.8,3938.7,5.92278515]
[1734305209441,0.00616172,3939.9,3939.8,2.53819]
[1734305209742,0.03216697,3939.9,3939.5,2.53836]
[1734305209942,0.03216697,3939.9,3938.7,0.12633514]
[1734305209943,2.67730336,3939.6,3938.7,0.12633514]
[1734305210144,2.67730336,3939.6,3938.0,2.53933]
[1734305210145,0.8329,3939.4,3938.0,2.53933]
[1734305210300,0.8329,3939.4,3938.6,0.12859142]
[1734305210498,0.02603801,3939.3,3937.8,0.02538662]
[1734305210705,0.77893801,3939.4,3938.7,0.3638699]
[1734305210987,0.02430017,3939.2,3938.7,2.53889]
[1734305211104,0.77893801,3939.4,3939.0,2.53866]
[1734305211744,0.77893801,3939.4,3938.0,2.53931]
[1734305211909,0.0243198,3939.3,3938.4,2.53907]
[1734305212294,0.0243198,3939.3,3939.1,2.53863]
[1734305212545,0.77893801,3939.4,3939.2,2.53854]
[1734305212705,0.02430017,3939.2,3938.7,2.53886]
[1734305212903,0.02430017,3939.2,3938.4,0.12408945]
[1734305212904,0.77893801,3939.4,3938.4,0.12408945]
[1734305213154,0.02428054,3939.1,3938.4,2.53908]
[1734305213321,0.77893801,3939.4,3938.6,2.53896]
[1734305213641,0.02412594,3939.0,3938.6,2.53896]
[1734305213843,0.77893801,3939.4,3938.6,2.53896]
[1734305214043,0.77893801,3939.4,3938.7,2.53888]
[1734305214044,0.02410631,3938.9,3938.7,2.53888]
[1734305214229,0.77893801,3939.4,3939.0,2.5387]
[1734305214545,0.0241225,3939.3,3939.1,2.5386]
[1734305215915,0.0241225,3939.3,3939.2,3.0]
[1734305216112,0.00616172,3939.9,3939.7,2.53823]
[1734305217758,0.00616172,3939.9,3938.6,0.3347]
[1734305217934,0.00616172,3939.9,3939.4,3.0]
[1734305218334,0.02449061,3939.8,3939.4,3.0]
[1734305218635,0.02449061,3939.8,3939.1,2.53864]
[1734305218956,0.02449061,3939.8,3938.9,3.0]
[1734305219260,0.02449061,3939.8,3939.0,2.53869]
[1734305219459,0.02449061,3939.8,3938.6,0.3347]
[1734305219756,0.02449061,3939.8,3939.7,3.0]
[1734305219975,0.00616172,3939.9,3939.8,2.53819]
[1734305220274,0.00616172,3939.9,3939.8,5.53819]
[1734305220636,2.35330172,3941.6,3939.9,3.0]
[1734305220838,7.8e-07,3944.2,3942.8,3.0]
[1734305221175,3.23e-06,3944.5,3944.4,5.53523]
[1734305221375,0.0262897,3946.3,3945.1,2.53478]
[1734305221376,5.91e-06,3945.2,3945.1,2.53478]
[1734305221545,0.25641701,3946.1,3945.2,3.0]
[1734305221885,0.25,3947.2,3945.0,0.4983]
[1734305222173,3.16657626,3947.2,3945.8,2.5343]
[1734305222480,3.16657626,3947.2,3944.1,0.02534369]
[1734305222481,0.25,3947.2,3944.2,0.4984]
[1734305222775,0.25,3947.1,3945.4,3.0]
[1734305223081,2.91657626,3947.1,3945.3,3.0]
[1734305223377,2.91657626,3947.1,3944.0,1.01720855]
[1734305223378,0.25,3946.9,3944.7,2.56038587]
[1734305223535,0.59185941,3947.0,3945.5,3.0]
[1734305223739,0.32584357,3946.9,3945.7,2.53434]
[1734305224072,0.32424198,3946.8,3945.8,0.07914788]
[1734305224373,0.00201781,3947.3,3945.9,0.07915202]
[1734305224557,0.00201781,3947.3,3945.9,3.20579525]
[1734305224558,0.7819,3947.1,3945.9,3.20579525]
[1734305224782,3.69847626,3947.1,3946.0,0.07915202]
[1734305225083,2.91657626,3947.0,3945.7,0.12663964]
[1734305225289,2.91657626,3947.0,3945.0,0.12702027]
[1734305225290,0.7741,3946.3,3945.0,0.12702027]
[1734305225431,0.36906763,3946.2,3945.0,0.12702027]
[1734305225634,0.7741,3945.5,3945.0,0.12702027]
[1734305225934,0.25,3947.0,3942.8,2.53624]
[1734305225935,0.7741,3945.0,3942.8,2.53624]
[1734305226172,0.7741,3944.4,3942.9,0.15831746]
[1734305226344,0.7741,3944.4,3942.2,1.01720855]
[1734305226345,2.91657626,3943.4,3943.0,0.15831746]
[1734305226552,2.91657626,3943.4,3941.9,2.94459212]
[1734305226553,3.69067626,3943.1,3942.5,2.53642]
[1734305226797,3.69067626,3943.1,3941.9,2.53679]
[1734305226798,0.7741,3943.1,3942.6,0.0791946]
[1734305226949,2.91657626,3943.7,3943.0,2.53607]
[1734305227357,2.91657626,3943.7,3942.6,0.12911861]
[1734305227358,2.91657626,3943.7,3943.4,2.53587]
[1734305227504,2.5337,3946.8,3943.1,0.40780212]
[1734305227505,0.8178,3945.5,3944.1,2.53538]
[1734305227719,0.8178,3945.5,3943.5,2.53575]
[1734305227720,0.8178,3945.5,3944.6,2.53505]
[1734305228013,0.0334129,3945.4,3944.1,0.40780212]
[1734305228322,0.8178,3945.5,3943.9,0.4984]
[1734305228323,0.8178,3945.5,3944.3,2.5353]
[1734305228502,0.8178,3945.5,3944.3,3.0]
[1734305228660,2.91657626,3945.0,3944.0,2.53546]
[1734305228870,0.8178,3944.3,3942.7,0.40780212]
[1734305229218,0.8178,3944.3,3942.8,0.15833506]
[1734305229219,2.91657626,3943.5,3942.8,0.15833506]
[1734305229399,0.8178,3944.3,3942.9,0.15833506]
[1734305229400,2.91657626,3944.1,3942.9,0.15833506]
[1734305229565,0.8178,3944.3,3943.7,2.53567]
[1734305229764,0.8178,3944.3,3943.8,0.07916753]
[1734305230010,0.25,3945.4,3942.2,0.40780212]
[1734305230011,0.7923,3944.0,3942.2,0.40780212]
[1734305230163,0.7923,3944.0,3941.3,4.06303283]
[1734305230164,0.7923,3943.0,3942.3,0.15835548]
[1734305230364,0.7923,3942.3,3940.6,1.01720855]
[1734305230607,0.7923,3942.3,3940.7,0.5915689]
[1734305230763,0.7923,3942.3,3940.8,0.40780212]
[1734305230967,0.7923,3942.3,3940.9,0.07920578]
[1734305231179,2.91657626,3941.6,3941.0,0.07920683]
[1734305231433,2.91657626,3941.6,3941.1,0.07920578]
[1734305231715,2.91657626,3941.6,3940.1,0.40780212]
[1734305231918,2.91657626,3941.5,3940.2,2.69641318]
[1734305232154,2.91657626,3941.5,3940.3,2.69630318]
[1734305232280,2.91657626,3940.9,3940.4,0.0792428]
[1734305232479,2.91657626,3940.9,3939.7,0.4984]
[1734305232809,0.7923,3941.4,3939.8,0.59168425]
[1734305233124,0.7923,3941.4,3940.2,2.53789]
[1734305233291,0.7923,3941.4,3940.3,0.07925293]
[1734305233495,0.7923,3941.4,3940.4,2.53775]
[1734305233680,2.53572,3943.7,3940.4,2.53775]
[1734305233681,0.7923,3942.1,3941.5,3.0]
[1734305233878,0.7923,3942.1,3940.5,2.56311306]
[1734305233879,0.7923,3942.1,3940.9,3.0]
[1734305234134,0.7923,3942.1,3941.0,0.15845894]
[1734305234295,0.7923,3942.1,3941.1,0.07922947]
[1734305234483,0.7923,3942.1,3941.2,0.07922947]
[1734305234847,0.7923,3942.1,3941.3,0.07922947]
[1734305234981,0.7923,3942.7,3941.4,0.10459863]
[1734305235181,0.7923,3942.7,3941.6,0.55]
[1734305235382,0.7923,3942.7,3942.0,3.0]
[1734305235605,0.7559,3943.2,3942.4,3.0]
[1734305235817,0.7559,3944.1,3943.1,2.53605]
[1734305236198,0.7559,3944.1,3943.2,0.02535549]
[1734305236424,0.7559,3944.1,3943.5,2.53577]
[1734305236820,0.7559,3944.1,3942.7,0.55]
[1734305237001,2.91657626,3943.6,3942.8,0.1583704]
[1734305237337,0.7559,3944.1,3943.5,2.53578]
[1734305237527,0.7728,3945.9,3943.0,1.0484]
[1734305237735,2.91657626,3945.6,3943.5,0.73603058]
[1734305238027,2.91657626,3945.0,3943.6,1.1161661]
[1734305238251,0.7728,3944.9,3943.7,0.15836398]
[1734305238550,0.25,3946.1,3943.7,0.15836398]
[1734305238551,0.7599,3945.5,3945.0,2.5348]
[1734305238750,0.7599,3945.5,3944.7,2.53501]
[1734305238751,3.67647626,3945.5,3944.7,2.53501]
[1734305239080,2.91657626,3944.9,3943.9,2.53551]
[1734305239349,0.5,3946.2,3945.1,2.53477]
[1734305239350,0.7599,3946.2,3945.1,2.53477]
[1734305239509,0.7599,3946.2,3944.6,2.53506]
[1734305239708,0.7599,3946.2,3943.9,3.0339]
[1734305239709,2.91657626,3945.8,3944.7,0.07915833]
[1734305239910,2.91657626,3945.8,3944.8,0.07915688]
[1734305239911,2.91657626,3945.2,3944.8,0.07915688]
[1734305240148,3.70447626,3945.2,3943.9,0.4984]
[1734305240346,0.7584,3946.0,3944.3,2.53527]
[1734305240564,0.7584,3946.0,3944.5,0.1246675]
[1734305240741,0.7584,3946.0,3944.6,0.15832831]
[1734305240911,0.7584,3947.6,3945.2,0.4984]
[1734305241112,2.91657626,3945.6,3944.5,0.6230675]
[1734305241312,0.25201781,3947.3,3944.5,0.6230675]
[1734305241313,0.7675,3946.7,3944.8,0.55]
[1734305241652,0.7675,3946.7,3945.1,2.53475]
[1734305241653,2.91657626,3946.4,3945.1,2.53475]
[1734305241879,2.91657626,3946.4,3945.2,0.07915787]
[1734305241880,2.91657626,3945.9,3945.2,0.07915787]
[1734305242156,2.91657626,3945.9,3944.5,0.4984]
[1734305242157,2.91657626,3945.3,3942.9,1.01720855]
[1734305242470,2.91657626,3945.3,3942.5,2.03441711]
[1734305242471,2.91657626,3943.6,3943.0,0.15833074]
[1734305242681,2.91657626,3944.3,3943.1,15.89242874]
[1734305242832,2.91657626,3944.3,3943.2,0.15833074]
[1734305243035,2.91657626,3944.9,3944.3,2.53529]
[1734305243331,2.91657626,3944.9,3943.3,0.15833074]
[1734305243332,2.91657626,3944.9,3943.3,2.53589]
[1734305243532,0.12645561,3946.7,3943.4,0.15837063]
[1734305243533,0.25,3945.0,3943.4,0.15837063]
[1734305243732,0.25,3945.0,3941.8,0.12644295]
[1734305243733,2.91657626,3943.5,3941.8,0.12644295]
[1734305243934,0.25,3944.8,3941.9,0.15840028]
[1734305243935,2.91657626,3942.4,3941.9,0.15840028]
[1734305244248,2.91657626,3942.4,3940.4,1.01720855]
[1734305244249,2.91657626,3942.4,3942.0,0.07920014]
[1734305244437,0.25,3943.6,3941.7,2.53694]
[1734305244769,2.91657626,3942.2,3941.8,0.07922521]
[1734305244985,2.91657626,3942.2,3941.9,0.07922521]
[1734305245134,2.91657626,3942.0,3940.1,2.53794]
[1734305245335,2.91657626,3942.0,3939.5,0.7507]
[1734305245336,3.70697626,3942.0,3940.2,0.15848219]
[1734305245561,3.70697626,3942.0,3941.5,2.53707]
[1734305245769,3.70697626,3942.0,3939.9,0.12649361]
[1734305245770,3.70697626,3942.0,3941.6,0.079241]
[1734305245957,0.25,3944.1,3940.4,0.02536923]
[1734305245958,3.69517626,3942.6,3941.7,0.15847016]
[1734305246194,2.91657626,3942.0,3941.8,0.079241]
[1734305246360,2.91657626,3942.0,3940.8,0.783]
[1734305246561,3.69517626,3942.6,3941.6,2.53703]
[1734305246774,3.69517626,3942.6,3941.7,0.07923003]
[1734305246775,0.7786,3942.6,3941.7,0.07923003]
[1734305247032,2.91657626,3942.5,3941.8,0.1584594]
[1734305247177,2.91657626,3942.5,3941.0,2.53737]
[1734305247178,2.91657626,3942.5,3941.9,0.1584594]
[1734305247398,2.91657626,3942.5,3942.0,0.15845377]
[1734305247676,3.40769,3945.3,3941.0,2.53737]
[1734305247677,0.7786,3943.6,3942.1,0.15845497]